Workbook

Sheet Instructions

Sheet Meta data_sheet
A1: Ambient Monitoring Station | B1: Details | D1: Ambient Monitoring Results | E1: Details
A2: Location | B2: Breeza | D2: PM2.5 monitoring start (dd/mm/yyyy hh:mm) | E2: 2018-04-09
A3: Easting | B3: =VLOOKUP($B$2,'Meta data_lookup'!$A$2:$D$5,2,FALSE) -> 237993 | D3: PM2.5 monitoring end | E3: 2018-04-16
A4: Northing | B4: =VLOOKUP($B$2,'Meta data_lookup'!$A$2:$D$5,3,FALSE) -> 6542606 | D4: PM2.5 monitoring period (h) | E4: =(E3-E2)*24 -> 168
A5: Site elevation (m) | B5: =VLOOKUP($B$2,'Meta data_lookup'!$A$2:$D$5,4,FALSE) -> ND | D5: Number of valid PM2.5 results | E5: =COUNTIF('Raw data_sheet'!G2:G745,"Valid") -> 166
A6: Description of surrounding land use | B6: Agriculture | D6: Proportion of valid PM2.5 results (%) | E6: =E5/E4 -> 0.9880952381
A7: Typical sources impacting on the site | B7: Agriculture/Gravel roads | D7: PM10 monitoring start (dd/mm/yyyy hh:mm) | E7: 2018-04-09
A8: Site compliance with AS/NZS 3580.1.1:2007 | B8: Yes | D8: PM10 monitoring end | E8: 2018-04-16
A9: PM2.5 method compliance with AS/NZS 3580.9.13:2013 | B9: Yes | D9: PM10 monitoring period (h) | E9: =(E8-E7)*24 -> 168
A10: PM2.5 instrument make | B10: Thermo | D10: Number of valid PM10 results | E10: =COUNTIF('Raw data_sheet'!J2:J745,"Valid") -> 168
A11: PM2.5 instrument model | B11: 1405DF | D11: Proportion of valid PM10 results (%) | E11: =E10/E9 -> 1
A12: PM2.5 instrument intake height (m) | B12: 3.5
A13: PM10 method compliance with AS 3580.9.8-2008 | B13: No*
A14: PM10 instrument make | B14: Thermo
A15: PM10 instrument model | B15: 1405DF
A16: PM10 instrument intake height (m) | B16: 3.5
A17: *The 1405DF TEOM used at this site measures PM10 indirectly rather than directly. The unit does however meet the intent of AS 3580.9.8-2008, and this method has been accredited by the USEPA. It is considered scientifically robust and is used extensively throughout NSW with EPA's knowledge and informal acceptance.

Sheet Meta data_lookup
A1: Location | B1: Easting | C1: Northing | D1: Site elevation (m)
A2: Maules Creek | B2: 225302 | C2: 6623037 | D2: ND
A3: Breeza | B3: 237993 | C3: 6542606 | D3: ND
A4: Will-gai | B4: 231804 | C4: 6596392 | D4: ND
A5: Werris Creek | B5: 276783 | C5: 6528734 | D5: ND

Sheet Raw data_sheet
A1: Year | B1: Month | C1: Day | D1: Hour | E1: Date and time | F1: PM2.5_hourly | G1: PM2.5_Data_Status | H1: PM2.5_24hr_rolling_average | I1: PM10_hourly | J1: PM10_Data_Status | K1: PM10_24hr_rolling_average | L1: Cause of data invalidity, if applicable | M1: Detailed comments | N1: PM2.5_hourly_valid_plot | O1: PM2.5_24hr_rolling_ave_valid_plot | P1: PM10_hourly_valid_plot | Q1: PM10_24hr_rolling_ave_valid_plot | R1: PM10_hourly_valid_plot_series | S1: PM10_24hr_rolling_average_valid_plot_series | T1: PM2.5_hourly_valid_plot_series | U1: PM2.5_24hr_rolling_average_valid_plot_series
A2: 2018 | B2: 4 | C2: 1 | D2: 0 | E2: =DATE(A2,B2,C2)+TIME(D2,0,0) -> 43191 | N2: =IF(G2="Valid", F2, NA()) ->  | O2: =IF(G2="Valid", H2, NA()) ->  | P2: =IF(J2="Valid", I2, NA()) ->  | Q2: =IF(J2="Valid", K2, NA()) -> 
A3: =A2 -> 2018 | B3: =B2 -> 4 | C3: =C2 -> 1 | D3: =IF(D2=23,0,D2+1) -> 1 | E3: =E2+0.0416666666666666 -> 43191.04167
A4: =A3 -> 2018 | B4: =B3 -> 4 | C4: 1 | D4: =IF(D3=23,0,D3+1) -> 2 | E4: =E3+0.0416666666666666 -> 43191.08333
A5: 2018 | B5: 4 | C5: 1 | D5: 3 | E5: 43191.125
A6: 2018 | B6: 4 | C6: 1 | D6: 4 | E6: 43191.16667
A7: 2018 | B7: 4 | C7: 1 | D7: 5 | E7: 43191.20833
A8: 2018 | B8: 4 | C8: 1 | D8: 6 | E8: 43191.25
A9: 2018 | B9: 4 | C9: 1 | D9: 7 | E9: 43191.29167
A10: 2018 | B10: 4 | C10: 1 | D10: 8 | E10: 43191.33333
A11: 2018 | B11: 4 | C11: 1 | D11: 9 | E11: 43191.375
A12: 2018 | B12: 4 | C12: 1 | D12: 10 | E12: 43191.41667
A13: 2018 | B13: 4 | C13: 1 | D13: 11 | E13: 43191.45833
A14: 2018 | B14: 4 | C14: 1 | D14: 12 | E14: 43191.5
A15: 2018 | B15: 4 | C15: 1 | D15: 13 | E15: 43191.54167
A16: 2018 | B16: 4 | C16: 1 | D16: 14 | E16: 43191.58333
A17: 2018 | B17: 4 | C17: 1 | D17: 15 | E17: 43191.625
A18: 2018 | B18: 4 | C18: 1 | D18: 16 | E18: 43191.66667
A19: 2018 | B19: 4 | C19: 1 | D19: 17 | E19: 43191.70833
A20: 2018 | B20: 4 | C20: 1 | D20: 18 | E20: 43191.75
A21: 2018 | B21: 4 | C21: 1 | D21: 19 | E21: 43191.79167
A22: 2018 | B22: 4 | C22: 1 | D22: 20 | E22: 43191.83333
A23: 2018 | B23: 4 | C23: 1 | D23: 21 | E23: 43191.875
A24: 2018 | B24: 4 | C24: 1 | D24: 22 | E24: 43191.91667
A25: 2018 | B25: =B24 -> 4 | C25: =C24 -> 1 | D25: 23 | E25: 43191.95833
A26: 2018 | B26: =B25 -> 4 | C26: =C2+1 -> 2 | D26: 0 | E26: 43192
A27: 2018 | B27: =B26 -> 4 | C27: =C3+1 -> 2 | D27: 1 | E27: 43192.04167
A28: 2018 | B28: 4 | C28: 2 | D28: 2 | E28: 43192.08333
A29: 2018 | B29: 4 | C29: 2 | D29: 3 | E29: 43192.125
A30: 2018 | B30: 4 | C30: 2 | D30: 4 | E30: 43192.16667
A31: 2018 | B31: 4 | C31: 2 | D31: 5 | E31: 43192.20833
A32: 2018 | B32: 4 | C32: 2 | D32: 6 | E32: 43192.25
A33: 2018 | B33: 4 | C33: 2 | D33: 7 | E33: 43192.29167
A34: 2018 | B34: 4 | C34: 2 | D34: 8 | E34: 43192.33333
A35: 2018 | B35: 4 | C35: 2 | D35: 9 | E35: 43192.375
A36: 2018 | B36: 4 | C36: 2 | D36: 10 | E36: 43192.41667
A37: 2018 | B37: 4 | C37: 2 | D37: 11 | E37: 43192.45833
A38: 2018 | B38: 4 | C38: 2 | D38: 12 | E38: 43192.5
A39: 2018 | B39: 4 | C39: 2 | D39: 13 | E39: 43192.54167
A40: 2018 | B40: 4 | C40: 2 | D40: 14 | E40: 43192.58333
A41: 2018 | B41: 4 | C41: 2 | D41: 15 | E41: 43192.625
A42: 2018 | B42: 4 | C42: 2 | D42: 16 | E42: 43192.66667
A43: 2018 | B43: 4 | C43: 2 | D43: 17 | E43: 43192.70833
A44: 2018 | B44: 4 | C44: 2 | D44: 18 | E44: 43192.75
A45: 2018 | B45: 4 | C45: 2 | D45: 19 | E45: 43192.79167
A46: 2018 | B46: 4 | C46: 2 | D46: 20 | E46: 43192.83333
A47: 2018 | B47: 4 | C47: 2 | D47: 21 | E47: 43192.875
A48: 2018 | B48: 4 | C48: 2 | D48: 22 | E48: 43192.91667
A49: 2018 | B49: 4 | C49: 2 | D49: 23 | E49: 43192.95833
A50: 2018 | B50: 4 | C50: 3 | D50: 0 | E50: 43193
A51: 2018 | B51: 4 | C51: 3 | D51: 1 | E51: 43193.04167
A52: 2018 | B52: 4 | C52: 3 | D52: 2 | E52: 43193.08333
A53: 2018 | B53: 4 | C53: 3 | D53: 3 | E53: 43193.125
A54: 2018 | B54: 4 | C54: 3 | D54: 4 | E54: 43193.16667
A55: 2018 | B55: 4 | C55: 3 | D55: 5 | E55: 43193.20833
A56: 2018 | B56: 4 | C56: 3 | D56: 6 | E56: 43193.25
A57: 2018 | B57: 4 | C57: 3 | D57: 7 | E57: 43193.29167
A58: 2018 | B58: 4 | C58: 3 | D58: 8 | E58: 43193.33333
A59: 2018 | B59: 4 | C59: 3 | D59: 9 | E59: 43193.375
A60: 2018 | B60: 4 | C60: 3 | D60: 10 | E60: 43193.41667
A61: 2018 | B61: 4 | C61: 3 | D61: 11 | E61: 43193.45833
A62: 2018 | B62: 4 | C62: 3 | D62: 12 | E62: 43193.5
A63: 2018 | B63: 4 | C63: 3 | D63: 13 | E63: 43193.54167
A64: 2018 | B64: 4 | C64: 3 | D64: 14 | E64: 43193.58333
A65: 2018 | B65: 4 | C65: 3 | D65: 15 | E65: 43193.625
A66: 2018 | B66: 4 | C66: 3 | D66: 16 | E66: 43193.66667 | N66: =IF(G66="Valid", F66, NA()) ->  | O66: =IF(G66="Valid", H66, NA()) ->  | P66: =IF(J66="Valid", I66, NA()) ->  | Q66: =IF(J66="Valid", K66, NA()) -> 
A67: 2018 | B67: 4 | C67: 3 | D67: 17 | E67: 43193.70833
A68: =A67 -> 2018 | B68: 4 | C68: 3 | D68: =IF(D67=23,0,D67+1) -> 18 | E68: =E67+0.0416666666666666 -> 43193.75
A69: 2018 | B69: 4 | C69: 3 | D69: 19 | E69: 43193.79167
A70: 2018 | B70: 4 | C70: 3 | D70: 20 | E70: 43193.83333
A71: 2018 | B71: 4 | C71: 3 | D71: 21 | E71: 43193.875
A72: 2018 | B72: 4 | C72: 3 | D72: 22 | E72: 43193.91667
A73: 2018 | B73: 4 | C73: 3 | D73: 23 | E73: 43193.95833
A74: 2018 | B74: 4 | C74: 4 | D74: 0 | E74: 43194
A75: 2018 | B75: 4 | C75: 4 | D75: 1 | E75: 43194.04167
A76: 2018 | B76: 4 | C76: 4 | D76: 2 | E76: 43194.08333
A77: 2018 | B77: 4 | C77: 4 | D77: 3 | E77: 43194.125
A78: 2018 | B78: 4 | C78: 4 | D78: 4 | E78: 43194.16667
A79: 2018 | B79: 4 | C79: 4 | D79: 5 | E79: 43194.20833
A80: 2018 | B80: 4 | C80: 4 | D80: 6 | E80: 43194.25
A81: 2018 | B81: 4 | C81: 4 | D81: 7 | E81: 43194.29167
A82: 2018 | B82: 4 | C82: 4 | D82: 8 | E82: 43194.33333
A83: 2018 | B83: 4 | C83: 4 | D83: 9 | E83: 43194.375
A84: 2018 | B84: 4 | C84: 4 | D84: 10 | E84: 43194.41667
A85: 2018 | B85: 4 | C85: 4 | D85: 11 | E85: 43194.45833
A86: 2018 | B86: 4 | C86: 4 | D86: 12 | E86: 43194.5
A87: 2018 | B87: 4 | C87: 4 | D87: 13 | E87: 43194.54167
A88: 2018 | B88: 4 | C88: 4 | D88: 14 | E88: 43194.58333
A89: 2018 | B89: 4 | C89: 4 | D89: 15 | E89: 43194.625
A90: 2018 | B90: 4 | C90: 4 | D90: 16 | E90: 43194.66667
A91: 2018 | B91: =B90 -> 4 | C91: =C67+1 -> 4 | D91: 17 | E91: 43194.70833
A92: 2018 | B92: 4 | C92: 4 | D92: 18 | E92: 43194.75
A93: 2018 | B93: 4 | C93: 4 | D93: 19 | E93: 43194.79167
A94: 2018 | B94: 4 | C94: 4 | D94: 20 | E94: 43194.83333
A95: 2018 | B95: 4 | C95: 4 | D95: 21 | E95: 43194.875
A96: 2018 | B96: 4 | C96: 4 | D96: 22 | E96: 43194.91667
A97: 2018 | B97: 4 | C97: 4 | D97: 23 | E97: 43194.95833
A98: 2018 | B98: 4 | C98: 5 | D98: 0 | E98: 43195
A99: 2018 | B99: 4 | C99: 5 | D99: 1 | E99: 43195.04167
A100: 2018 | B100: 4 | C100: 5 | D100: 2 | E100: 43195.08333
A101: 2018 | B101: 4 | C101: 5 | D101: 3 | E101: 43195.125
A102: 2018 | B102: 4 | C102: 5 | D102: 4 | E102: 43195.16667
A103: 2018 | B103: 4 | C103: 5 | D103: 5 | E103: 43195.20833
A104: 2018 | B104: 4 | C104: 5 | D104: 6 | E104: 43195.25
A105: 2018 | B105: 4 | C105: 5 | D105: 7 | E105: 43195.29167
A106: 2018 | B106: 4 | C106: 5 | D106: 8 | E106: 43195.33333
A107: 2018 | B107: 4 | C107: 5 | D107: 9 | E107: 43195.375
A108: 2018 | B108: 4 | C108: 5 | D108: 10 | E108: 43195.41667
A109: 2018 | B109: 4 | C109: 5 | D109: 11 | E109: 43195.45833
A110: 2018 | B110: 4 | C110: 5 | D110: 12 | E110: 43195.5
A111: 2018 | B111: 4 | C111: 5 | D111: 13 | E111: 43195.54167
A112: 2018 | B112: 4 | C112: 5 | D112: 14 | E112: 43195.58333
A113: 2018 | B113: 4 | C113: 5 | D113: 15 | E113: 43195.625
A114: 2018 | B114: 4 | C114: 5 | D114: 16 | E114: 43195.66667
A115: 2018 | B115: 4 | C115: 5 | D115: 17 | E115: 43195.70833
A116: 2018 | B116: 4 | C116: 5 | D116: 18 | E116: 43195.75
A117: 2018 | B117: 4 | C117: 5 | D117: 19 | E117: 43195.79167
A118: 2018 | B118: 4 | C118: 5 | D118: 20 | E118: 43195.83333
A119: 2018 | B119: 4 | C119: 5 | D119: 21 | E119: 43195.875
A120: 2018 | B120: 4 | C120: 5 | D120: 22 | E120: 43195.91667
A121: 2018 | B121: 4 | C121: 5 | D121: 23 | E121: 43195.95833
A122: 2018 | B122: 4 | C122: 6 | D122: 0 | E122: 43196
A123: 2018 | B123: 4 | C123: 6 | D123: 1 | E123: 43196.04167
A124: 2018 | B124: 4 | C124: 6 | D124: 2 | E124: 43196.08333
A125: 2018 | B125: 4 | C125: 6 | D125: 3 | E125: 43196.125
A126: 2018 | B126: 4 | C126: 6 | D126: 4 | E126: 43196.16667
A127: 2018 | B127: 4 | C127: 6 | D127: 5 | E127: 43196.20833
A128: 2018 | B128: 4 | C128: 6 | D128: 6 | E128: 43196.25
A129: 2018 | B129: 4 | C129: 6 | D129: 7 | E129: 43196.29167
A130: 2018 | B130: 4 | C130: 6 | D130: 8 | E130: 43196.33333 | N130: =IF(G130="Valid", F130, NA()) ->  | O130: =IF(G130="Valid", H130, NA()) ->  | P130: =IF(J130="Valid", I130, NA()) ->  | Q130: =IF(J130="Valid", K130, NA()) -> 
A131: 2018 | B131: 4 | C131: 6 | D131: 9 | E131: 43196.375
A132: =A131 -> 2018 | B132: 4 | C132: 6 | D132: =IF(D131=23,0,D131+1) -> 10 | E132: =E131+0.0416666666666666 -> 43196.41667
A133: 2018 | B133: 4 | C133: 6 | D133: 11 | E133: 43196.45833
A134: 2018 | B134: 4 | C134: 6 | D134: 12 | E134: 43196.5
A135: 2018 | B135: 4 | C135: 6 | D135: 13 | E135: 43196.54167
A136: 2018 | B136: 4 | C136: 6 | D136: 14 | E136: 43196.58333
A137: 2018 | B137: 4 | C137: 6 | D137: 15 | E137: 43196.625
A138: 2018 | B138: 4 | C138: 6 | D138: 16 | E138: 43196.66667
A139: 2018 | B139: 4 | C139: 6 | D139: 17 | E139: 43196.70833
A140: 2018 | B140: 4 | C140: 6 | D140: 18 | E140: 43196.75
A141: 2018 | B141: 4 | C141: 6 | D141: 19 | E141: 43196.79167
A142: 2018 | B142: 4 | C142: 6 | D142: 20 | E142: 43196.83333
A143: 2018 | B143: 4 | C143: 6 | D143: 21 | E143: 43196.875
A144: 2018 | B144: 4 | C144: 6 | D144: 22 | E144: 43196.91667
A145: 2018 | B145: 4 | C145: 6 | D145: 23 | E145: 43196.95833
A146: 2018 | B146: 4 | C146: 7 | D146: 0 | E146: 43197
A147: 2018 | B147: 4 | C147: 7 | D147: 1 | E147: 43197.04167
A148: 2018 | B148: 4 | C148: 7 | D148: 2 | E148: 43197.08333
A149: 2018 | B149: 4 | C149: 7 | D149: 3 | E149: 43197.125
A150: 2018 | B150: 4 | C150: 7 | D150: 4 | E150: 43197.16667
A151: 2018 | B151: 4 | C151: 7 | D151: 5 | E151: 43197.20833
A152: 2018 | B152: 4 | C152: 7 | D152: 6 | E152: 43197.25
A153: 2018 | B153: 4 | C153: 7 | D153: 7 | E153: 43197.29167
A154: 2018 | B154: 4 | C154: 7 | D154: 8 | E154: 43197.33333
A155: 2018 | B155: =B154 -> 4 | C155: =C131+1 -> 7 | D155: 9 | E155: 43197.375
A156: 2018 | B156: 4 | C156: 7 | D156: 10 | E156: 43197.41667
A157: 2018 | B157: 4 | C157: 7 | D157: 11 | E157: 43197.45833
A158: 2018 | B158: 4 | C158: 7 | D158: 12 | E158: 43197.5
A159: 2018 | B159: 4 | C159: 7 | D159: 13 | E159: 43197.54167
A160: 2018 | B160: 4 | C160: 7 | D160: 14 | E160: 43197.58333
A161: 2018 | B161: 4 | C161: 7 | D161: 15 | E161: 43197.625
A162: 2018 | B162: 4 | C162: 7 | D162: 16 | E162: 43197.66667
A163: 2018 | B163: 4 | C163: 7 | D163: 17 | E163: 43197.70833
A164: 2018 | B164: 4 | C164: 7 | D164: 18 | E164: 43197.75
A165: 2018 | B165: 4 | C165: 7 | D165: 19 | E165: 43197.79167
A166: 2018 | B166: 4 | C166: 7 | D166: 20 | E166: 43197.83333
A167: 2018 | B167: 4 | C167: 7 | D167: 21 | E167: 43197.875
A168: 2018 | B168: 4 | C168: 7 | D168: 22 | E168: 43197.91667
A169: 2018 | B169: 4 | C169: 7 | D169: 23 | E169: 43197.95833
A170: 2018 | B170: 4 | C170: 8 | D170: 0 | E170: 43198
A171: 2018 | B171: 4 | C171: 8 | D171: 1 | E171: 43198.04167
A172: 2018 | B172: 4 | C172: 8 | D172: 2 | E172: 43198.08333
A173: 2018 | B173: 4 | C173: 8 | D173: 3 | E173: 43198.125
A174: 2018 | B174: 4 | C174: 8 | D174: 4 | E174: 43198.16667
A175: 2018 | B175: 4 | C175: 8 | D175: 5 | E175: 43198.20833
A176: 2018 | B176: 4 | C176: 8 | D176: 6 | E176: 43198.25
A177: 2018 | B177: 4 | C177: 8 | D177: 7 | E177: 43198.29167
A178: 2018 | B178: 4 | C178: 8 | D178: 8 | E178: 43198.33333
A179: 2018 | B179: 4 | C179: 8 | D179: 9 | E179: 43198.375
A180: 2018 | B180: 4 | C180: 8 | D180: 10 | E180: 43198.41667
A181: 2018 | B181: 4 | C181: 8 | D181: 11 | E181: 43198.45833
A182: 2018 | B182: 4 | C182: 8 | D182: 12 | E182: 43198.5
A183: 2018 | B183: 4 | C183: 8 | D183: 13 | E183: 43198.54167
A184: 2018 | B184: 4 | C184: 8 | D184: 14 | E184: 43198.58333
A185: 2018 | B185: 4 | C185: 8 | D185: 15 | E185: 43198.625
A186: 2018 | B186: 4 | C186: 8 | D186: 16 | E186: 43198.66667
A187: 2018 | B187: 4 | C187: 8 | D187: 17 | E187: 43198.70833
A188: 2018 | B188: 4 | C188: 8 | D188: 18 | E188: 43198.75
A189: 2018 | B189: 4 | C189: 8 | D189: 19 | E189: 43198.79167
A190: 2018 | B190: 4 | C190: 8 | D190: 20 | E190: 43198.83333
A191: 2018 | B191: 4 | C191: 8 | D191: 21 | E191: 43198.875
A192: 2018 | B192: 4 | C192: 8 | D192: 22 | E192: 43198.91667
A193: 2018 | B193: 4 | C193: 8 | D193: 23 | E193: 43198.95833
A194: 2018 | B194: 4 | C194: 9 | D194: 0 | E194: 43199 | F194: 8.46 | G194: Valid | H194: 6.75 | I194: 14.4 | J194: Valid | K194: 11.69 | N194: =IF(G194="Valid", F194, NA()) -> 8.46 | O194: =IF(G194="Valid", H194, NA()) -> 6.75 | P194: =IF(J194="Valid", I194, NA()) -> 14.4 | Q194: =IF(J194="Valid", K194, NA()) -> 11.69 | R194: 14.4 | S194: 11.69 | T194: 8.46 | U194: 6.75
A195: 2018 | B195: 4 | C195: 9 | D195: 1 | E195: 43199.04167 | F195: 1.49 | G195: Valid | H195: 6.34 | I195: 6.95 | J195: Valid | K195: 11.05 | N195: 1.49 | O195: 6.34 | P195: 6.95 | Q195: 11.05 | R195: 6.95 | S195: 11.05 | T195: 1.49 | U195: 6.34
A196: =A195 -> 2018 | B196: 4 | C196: 9 | D196: =IF(D195=23,0,D195+1) -> 2 | E196: =E195+0.0416666666666666 -> 43199.08333 | F196: 8.3 | G196: Valid | H196: 6.56 | I196: 15.41 | J196: Valid | K196: 10.99 | N196: 8.3 | O196: 6.56 | P196: 15.41 | Q196: 10.99 | R196: 15.41 | S196: 10.99 | T196: 8.3 | U196: 6.56
A197: 2018 | B197: 4 | C197: 9 | D197: 3 | E197: 43199.125 | F197: 5 | G197: Valid | H197: 6.6 | I197: 11.01 | J197: Valid | K197: 11 | N197: 5 | O197: 6.6 | P197: 11.01 | Q197: 11 | R197: 11.01 | S197: 11 | T197: 5 | U197: 6.6
A198: 2018 | B198: 4 | C198: 9 | D198: 4 | E198: 43199.16667 | F198: 7.25 | G198: Valid | H198: 6.57 | I198: 12.45 | J198: Valid | K198: 10.77 | N198: 7.25 | O198: 6.57 | P198: 12.45 | Q198: 10.77 | R198: 12.45 | S198: 10.77 | T198: 7.25 | U198: 6.57
A199: 2018 | B199: 4 | C199: 9 | D199: 5 | E199: 43199.20833 | F199: 4.35 | G199: Valid | H199: 6.33 | I199: 9.31 | J199: Valid | K199: 10.8 | N199: 4.35 | O199: 6.33 | P199: 9.31 | Q199: 10.8 | R199: 9.31 | S199: 10.8 | T199: 4.35 | U199: 6.33
A200: 2018 | B200: 4 | C200: 9 | D200: 6 | E200: 43199.25 | F200: 10.08 | G200: Valid | H200: 6.22 | I200: 14.38 | J200: Valid | K200: 10.73 | N200: 10.08 | O200: 6.22 | P200: 14.38 | Q200: 10.73 | R200: 14.38 | S200: 10.73 | T200: 10.08 | U200: 6.22
... 545 more rows

Sheet Raw data_format
A1: Parameter | B1: Format | C1: Comment | D1: Units of measure | E1: Minimum | F1: Maximum
A2: Year | B2: yyyy | C2: 4 integer format | D2: Not applicable | E2: 2015 | F2: Until reporting ceases
A3: Month | B3: mm | C3: 2 integer format | D3: Not applicable | E3: 1 | F3: 12
A4: Day | B4: dd | C4: 2 integer format | D4: Not applicable | E4: 1 | F4: 31
A5: Hour | B5: hh | C5: 2 integer format | D5: Not applicable | E5: 0 | F5: 23
A6: PM10 | B6: 0 | C6: 1 decimal place resolution | D6: µg/m3 | E6: Negative | F6: Instrument specific
A7: PM2.5 | B7: 0 | C7: 2 decimal place resolution | D7: µg/m3 | E7: Negative | F7: Instrument specific
A8: Status | B8: Text | C8: 7 character format | D8: Not applicable | E8: Valid | F8: Invalid
